[Event "5th Baskent University Open 2022"]
[Site "Ankara"]
[Date "2022.07.04"]
[Round "4.15"]
[White "Ozkan, Taha"]
[Black "Tarhan, Adar"]
[Result "0-1"]
[ECO "D36"]
[WhiteElo "2357"]
[BlackElo "2201"]
[Annotator "TA"]
[PlyCount "62"]
[EventDate "2022.07.02"]
[EventType "swiss"]
[EventCountry "TUR"]
[SourceTitle "playchess.com"]
[Source "ChessBase"]
[SourceQuality "1"]
[TimeControl "5400+30"]

{[%evp 19,62,8,22,7,15,7,22,0,3,8,10,-14,-15,-54,0,-70,-15,-22,-16,-16,0,-25,0,0,0,0,43,-30,-30,-61,-41,-86,-73,-111,-106,-111,-60,-72,-64,-82,-82,-113,-116,-1028,-1120]} 1. d4 {[%emt 0:01:00]} d5 {[%emt 0:01:00]} 2. c4 {[%emt 0:00:30]} e6 {[%emt 0:00:00]} 3. Nc3 {[%emt 0:00:30]} Nf6 {[%emt 0:00:00]} 4. cxd5 {[%emt 0:00:30]} exd5 {[%emt 0:00:30]} 5. Bg5 {[%emt 0:00:00]} Be7 {[%emt 0:00:30]} 6. e3 {[%emt 0:00:00]} c6 {[%emt 0:00:30]} 7. Bd3 {[%emt 0:00:00]} Nbd7 {[%emt 0:00:30]} 8. Qc2 {[%emt 0:00:00]} Nh5 {[%emt 0:00:30]} 9. Bxe7 {[%emt 0:00:30]} Qxe7 {[%emt 0:00:00]} 10. O-O-O {[%emt 0:00:00][%cal Be1c1,Bc1b1,Bb1a1,Ba1a2][%mdl 32]} Nb6 {[%emt 0:00:00]} 11. Kb1 {[%emt 0:01:00] D36: Queen's Gambit Declined: Exchange Variation: Main line (5 Bg5 c6 6 Qc2).} g6 {[%emt 0:00:30]} 12. h3 {[%emt 0:01:30]} Ng7 {[%emt 0:00:30]} 13. Nge2 {[%emt 0:01:30] The position is equal.} Bf5 {[%emt 0:00:00] [#]} 14. Bxf5 $146 {[%emt 0:00:00]} ({Predecessor:} 14. Nf4 O-O-O 15. Ka1 Kb8 16. Rc1 h5 17. Bxf5 Nxf5 18. Nd3 Nd6 19. Nc5 Nd7 20. N3a4 Nxc5 21. Nxc5 {½-½ (33) Aravindh,C (2609)-Adams,M (2694) Khanty-Mansiysk 2019}) 14... Nxf5 {[%emt 0:00:00]} 15. a4 {[%emt 0:00:00]} Nc4 {[%emt 0:12:30]} 16. Ka1 {[%emt 0:00:30] [#]} a6 {[%emt 0:06:30]} (16... Ncxe3 $1 $15 17. fxe3 Nxe3) 17. b3 {[%emt 0:03:30] [#]} (17. Nf4 $11) 17... Na5 {[%emt 0:01:30] Black is more active.} (17... Nfxe3 $1 $15 18. fxe3 Nxe3) 18. Ka2 {[%emt 0:01:30]} b5 {[%emt 0:00:30]} 19. Nf4 {[%emt 0:00:30]} O-O {[%emt 0:00:30]} 20. Nd3 {[%emt 0:02:30]} Rfb8 {[%emt 0:02:30][%cal Bf8b8,Bb8b4,Bb4b5][%mdl 32]} 21. Rb1 {[%emt 0:01:30]} Nd6 {[%emt 0:01:30]} 22. h4 {[%emt 0:08:30]} Ne4 {[%emt 0:03:30]} 23. Ne5 {[%emt 0:03:30]} (23. h5 $14) 23... bxa4 $11 {[%emt 0:12:30]} 24. Nxa4 {[%emt 0:02:30]} Rb4 $40 {[%emt 0:14:30][%mdl 128] Hoping for ...Rab8. Black has some attack.} ({Much weaker is} 24... Qb4 25. Nd3 Qe7 26. Ndc5 $11) 25. Nd3 {[%emt 0:14:30] [#]} Rb5 {[%emt 0:01:30] White must now prevent ...Rab8.} 26. Ndc5 {[%emt 0:02:30]} Nxc5 {[%emt 0:00:30]} 27. Nxc5 {[%emt 0:00:30]} Nb7 {[%emt 0:00:30]} (27... Rab8 $17 {[%cal Oa5c4] ...Nc4! is the strong threat.} 28. Qc3 Nb7 29. Nxb7 R8xb7) 28. Nxb7 $15 {[%emt 0:02:30]} Qxb7 {[%emt 0:00:30]} 29. Rhc1 {[%emt 0:02:30]} Rb8 {[%emt 0:01:30][%cal Oc6c5]} 30. Rb2 {[%emt 0:02:30]} Qe7 {[%emt 0:04:30][%cal Oe7a3]} 31. h5 $2 {[%emt 0:05:30][%mdl 8192] [#]} (31. Qd2 $17) 31... Qa3+ $3 {[%emt 0:00:30][%mdl 512] Weighted Error Value: White=0.55/Black=0.14 (very precise)} 0-1

[Event "5th Baskent University Open 2022"]
[Site "Ankara"]
[Date "2022.07.04"]
[Round "4.16"]
[White "Maruflu, Enes Yusuf"]
[Black "Primbetov, Kazbek"]
[Result "1-0"]
[ECO "E16"]
[WhiteElo "2046"]
[BlackElo "2147"]
[Annotator "RC"]
[PlyCount "73"]
[EventDate "2022.07.02"]
[EventType "swiss"]
[EventCountry "TUR"]
[SourceTitle "playchess.com"]
[Source "ChessBase"]
[SourceQuality "1"]
[TimeControl "5400+30"]

1. d4 {[%emt 0:06:00]} e6 {[%emt 0:05:00]} 2. c4 {[%emt 0:03:30]} b6 {[%emt 0:01:30]} 3. Nf3 {[%emt 0:05:30]} Bb7 {[%emt 0:01:30]} 4. g3 {[%emt 0:00:30]} Nf6 {[%emt 0:18:30]} 5. Bg2 {[%emt 0:00:30]} c5 {[%emt 0:00:00]} 6. d5 {[%emt 0:04:30]} exd5 {[%emt 0:00:00]} 7. Nh4 {[%emt 0:00:00]} g6 {[%emt 0:08:30]} 8. Nc3 {[%emt 0:07:00]} Bg7 {[%emt 0:01:30]} 9. cxd5 {[%emt 0:01:30]} O-O {[%emt 0:00:30]} 10. O-O {[%emt 0:00:00]} d6 {[%emt 0:00:30]} 11. e4 {[%emt 0:06:00]} Nbd7 {[%emt 0:02:30]} 12. f4 {[%emt 0:00:00]} Re8 {[%emt 0:07:30]} 13. Re1 {[%emt 0:02:00]} a6 {[%emt 0:00:30]} 14. a4 {[%emt 0:02:30]} c4 {[%emt 0:05:30]} 15. Nf3 {[%emt 0:11:30]} Nc5 {[%emt 0:05:30]} 16. e5 {[%emt 0:00:30]} Ng4 {[%emt 0:17:30]} 17. h3 {[%emt 0:02:30]} Nh6 {[%emt 0:02:30]} 18. Ne4 {[%emt 0:01:30]} Nxe4 {[%emt 0:01:49]} 19. Rxe4 {[%emt 0:00:00]} dxe5 {[%emt 0:00:00]} 20. Rxe5 {[%emt 0:02:00]} Bxe5 {[%emt 0:02:20]} 21. fxe5 {[%emt 0:00:30]} Nf5 {[%emt 0:01:14]} 22. g4 {[%emt 0:00:30]} Ne7 {[%emt 0:06:31]} 23. d6 {[%emt 0:00:30]} Nd5 {[%emt 0:01:08]} 24. Qd4 {[%emt 0:04:30]} f6 {[%emt 0:05:31]} 25. Bh6 {[%emt 0:02:30]} Re6 {[%emt 0:04:01]} 26. Rd1 {[%emt 0:03:30]} b5 {[%emt 0:01:05]} 27. Qc5 {[%emt 0:05:30]} Rc8 {[%emt 0:00:50]} 28. Qa7 {[%emt 0:00:30]} Qb6+ {[%emt 0:00:31]} 29. Qxb6 {[%emt 0:00:30]} Nxb6 {[%emt 0:00:30]} 30. Nd4 {[%emt 0:00:00]} Bxg2 {[%emt 0:00:33]} 31. Nxe6 {[%emt 0:00:00]} Bxh3 {[%emt 0:00:25]} 32. d7 {[%emt 0:03:30]} Nxd7 {[%emt 0:00:30]} 33. Rxd7 {[%emt 0:00:30]} Bxg4 {[%emt 0:00:00]} 34. Rg7+ {[%emt 0:00:30]} Kh8 {[%emt 0:00:00]} 35. Nc7 {[%emt 0:02:30]} Rd8 {[%emt 0:01:30]} 36. Re7 {[%emt 0:03:30]} fxe5 {[%emt 0:00:30]} 37. Ne8 {[%emt 0:01:30]} 1-0

[Event "5th Baskent University Open 2022"]
[Site "Ankara"]
[Date "2022.07.04"]
[Round "4.17"]
[White "Cakiroglu, Metin"]
[Black "Eke, Salih"]
[Result "1-0"]
[ECO "D00"]
[WhiteElo "2068"]
[BlackElo "2195"]
[Annotator "RC"]
[PlyCount "63"]
[EventDate "2022.07.02"]
[EventType "swiss"]
[EventCountry "TUR"]
[SourceTitle "playchess.com"]
[Source "ChessBase"]
[SourceQuality "1"]
[TimeControl "5400+30"]

1. d4 {[%emt 0:06:00]} d5 {[%emt 0:01:00]} 2. Nc3 {[%emt 0:00:30]} Nf6 {[%emt 0:01:30]} 3. Bf4 {[%emt 0:00:30]} Bf5 {[%emt 0:01:30]} 4. f3 {[%emt 0:00:30]} e6 {[%emt 0:00:30]} 5. g4 {[%emt 0:00:30]} Bg6 {[%emt 0:00:00]} 6. h4 {[%emt 0:00:00]} h6 {[%emt 0:02:00]} 7. e3 {[%emt 0:02:00]} Bd6 {[%emt 0:00:30]} 8. Nh3 {[%emt 0:00:30]} O-O {[%emt 0:05:30]} 9. Bd3 {[%emt 0:00:30]} c5 {[%emt 0:07:30]} 10. Bxg6 {[%emt 0:01:30]} fxg6 {[%emt 0:00:30]} 11. Qd3 {[%emt 0:00:30]} cxd4 {[%emt 0:00:30]} 12. exd4 {[%emt 0:00:30]} Bxf4 {[%emt 0:04:30]} 13. Nxf4 {[%emt 0:00:30]} Qd6 {[%emt 0:00:30]} 14. Nxg6 {[%emt 0:15:30]} Qg3+ {[%emt 0:00:00]} 15. Kd2 {[%emt 0:00:30]} Nc6 {[%emt 0:27:00]} 16. Ne2 {[%emt 0:02:30]} Qd6 {[%emt 0:00:30]} 17. Nxf8 {[%emt 0:00:30]} Rxf8 {[%emt 0:02:30]} 18. g5 {[%emt 0:01:30]} Nh5 {[%emt 0:04:30]} 19. c3 {[%emt 0:08:30]} e5 {[%emt 0:00:00]} 20. gxh6 {[%emt 0:21:30]} exd4 {[%emt 0:00:00]} 21. cxd4 {[%emt 0:00:30]} Nf4 {[%emt 0:06:30]} 22. Qe3 {[%emt 0:05:30]} Nxe2 {[%emt 0:07:30]} 23. Kxe2 {[%emt 0:01:30]} Rf6 {[%emt 0:09:16]} 24. Kf2 {[%emt 0:01:30]} Re6 {[%emt 0:01:11]} 25. Qd2 {[%emt 0:00:30]} Rxh6 {[%emt 0:00:19]} 26. Rag1 {[%emt 0:00:30]} Ne7 {[%emt 0:00:11]} 27. Qg5 {[%emt 0:04:30]} Rg6 {[%emt 0:00:30]} 28. Qe5 {[%emt 0:00:30]} Qb4 {[%emt 0:00:01]} 29. Rxg6 {[%emt 0:00:00]} Qd2+ {[%emt 0:00:22]} 30. Kg3 {[%emt 0:00:00]} Nxg6 {[%emt 0:00:02]} 31. Qxd5+ {[%emt 0:00:30]} Kf8 {[%emt 0:00:33]} 32. Qf5+ {[%emt 0:00:30]} 1-0

[Event "5th Baskent University Open 2022"]
[Site "Ankara"]
[Date "2022.07.04"]
[Round "4.18"]
[White "Cansu, Batuhan"]
[Black "Cevizci, Yusuf Baran"]
[Result "1/2-1/2"]
[ECO "D11"]
[WhiteElo "2083"]
[BlackElo "2144"]
[Annotator "RC"]
[PlyCount "66"]
[EventDate "2022.07.02"]
[EventType "swiss"]
[EventCountry "TUR"]
[SourceTitle "playchess.com"]
[Source "ChessBase"]
[SourceQuality "1"]
[TimeControl "5400+30"]

1. d4 {[%emt 0:07:00]} d5 {[%emt 0:01:00]} 2. Nf3 {[%emt 0:00:30]} Nf6 {[%emt 0:00:30]} 3. g3 {[%emt 0:00:30]} Bf5 {[%emt 0:00:30]} 4. Bg2 {[%emt 0:00:00]} h6 {[%emt 0:00:00]} 5. c4 {[%emt 0:00:00]} c6 {[%emt 0:00:00]} 6. Nc3 {[%emt 0:00:30]} e6 {[%emt 0:00:00]} 7. Qb3 {[%emt 0:00:30]} Qb6 {[%emt 0:00:00]} 8. c5 {[%emt 0:00:30]} Qxb3 {[%emt 0:00:00]} 9. axb3 {[%emt 0:00:00]} Na6 {[%emt 0:00:00]} 10. Ra4 {[%emt 0:00:00]} Nc7 {[%emt 0:00:00]} 11. b4 {[%emt 0:00:30]} Be7 {[%emt 0:00:00]} 12. h4 {[%emt 0:03:30]} Nd7 {[%emt 0:02:30]} 13. O-O {[%emt 0:08:30]} Nb5 {[%emt 0:01:30]} 14. Ra1 {[%emt 0:02:30]} f6 {[%emt 0:04:30]} 15. Nxb5 {[%emt 0:02:30]} cxb5 {[%emt 0:00:30]} 16. Nd2 {[%emt 0:00:30]} Nb8 {[%emt 0:00:30]} 17. e4 {[%emt 0:04:30]} dxe4 {[%emt 0:00:30]} 18. Nxe4 {[%emt 0:00:30]} Nc6 {[%emt 0:01:30]} 19. Nc3 {[%emt 0:00:00]} Kf7 {[%emt 0:00:30]} 20. d5 {[%emt 0:03:00]} exd5 {[%emt 0:00:30]} 21. Nxd5 {[%emt 0:08:30]} Rhd8 {[%emt 0:02:30]} 22. Bd2 {[%emt 0:10:30]} Be6 {[%emt 0:09:30]} 23. Nc7 {[%emt 0:09:30]} Rac8 {[%emt 0:00:30]} 24. Nxe6 {[%emt 0:10:30]} Rxd2 {[%emt 0:00:30]} 25. Nf4 {[%emt 0:00:00]} g5 {[%emt 0:04:30]} 26. hxg5 {[%emt 0:00:00]} hxg5 {[%emt 0:00:00]} 27. Nd5 {[%emt 0:00:30]} Rxb2 {[%emt 0:01:00]} 28. Nxe7 {[%emt 0:01:30]} Nxe7 {[%emt 0:00:00]} 29. Rxa7 {[%emt 0:02:30]} Rxb4 {[%emt 0:00:00]} 30. Rxb7 {[%emt 0:00:30]} Rxc5 {[%emt 0:00:30]} 31. Re1 {[%emt 0:00:30]} Re5 {[%emt 0:00:30]} 32. Rxe5 {[%emt 0:00:30]} fxe5 {[%emt 0:00:30]} 33. Bf1 {[%emt 0:00:00]} Rb1 {[%emt 0:00:00]} 1/2-1/2

[Event "5th Baskent University Open 2022"]
[Site "Ankara"]
[Date "2022.07.04"]
[Round "4.19"]
[White "Primbetov, Marat"]
[Black "Kocak, Can"]
[Result "1-0"]
[ECO "B06"]
[WhiteElo "2186"]
[BlackElo "2057"]
[Annotator "RC"]
[PlyCount "89"]
[EventDate "2022.07.02"]
[EventType "swiss"]
[EventCountry "TUR"]
[SourceTitle "playchess.com"]
[Source "ChessBase"]
[SourceQuality "1"]
[TimeControl "5400+30"]

1. e4 {[%emt 0:08:00]} d6 {[%emt 0:01:00]} 2. d4 {[%emt 0:00:30]} g6 {[%emt 0:00:00]} 3. Nc3 {[%emt 0:02:30]} Bg7 {[%emt 0:00:00]} 4. Be3 {[%emt 0:02:30]} a6 {[%emt 0:01:30]} 5. Qd2 {[%emt 0:00:30]} b5 {[%emt 0:00:00]} 6. a3 {[%emt 0:04:30]} Bb7 {[%emt 0:00:00]} 7. f3 {[%emt 0:01:30]} Nd7 {[%emt 0:00:00]} 8. Nge2 {[%emt 0:00:30]} Rc8 {[%emt 0:01:00]} 9. d5 {[%emt 0:06:30]} c6 {[%emt 0:02:30]} 10. dxc6 {[%emt 0:04:30]} Bxc6 {[%emt 0:00:30]} 11. Nd4 {[%emt 0:00:00]} Bb7 {[%emt 0:00:30]} 12. Be2 {[%emt 0:01:00]} Ngf6 {[%emt 0:07:30]} 13. O-O {[%emt 0:00:30]} O-O {[%emt 0:00:30]} 14. a4 {[%emt 0:01:30]} b4 {[%emt 0:06:30]} 15. Na2 {[%emt 0:10:30]} a5 {[%emt 0:00:30]} 16. c3 {[%emt 0:02:30]} bxc3 {[%emt 0:02:30]} 17. Nxc3 {[%emt 0:00:30]} Nc5 {[%emt 0:00:30]} 18. Rab1 {[%emt 0:02:30]} Na6 {[%emt 0:04:30]} 19. Rfd1 {[%emt 0:05:30]} Nd7 {[%emt 0:03:30]} 20. Na2 {[%emt 0:17:30]} Ndc5 {[%emt 0:19:30]} 21. b3 {[%emt 0:01:30]} d5 {[%emt 0:05:30]} 22. exd5 {[%emt 0:01:30]} Qxd5 {[%emt 0:01:30]} 23. Qxa5 {[%emt 0:05:30]} Qe5 {[%emt 0:01:30]} 24. Bf2 {[%emt 0:01:33]} Nc7 {[%emt 0:06:30]} 25. b4 {[%emt 0:04:00]} N7e6 {[%emt 0:00:30]} 26. bxc5 {[%emt 0:05:48]} Nxd4 {[%emt 0:00:30]} 27. Rxd4 {[%emt 0:00:43]} Qxe2 {[%emt 0:01:30]} 28. Rd2 {[%emt 0:00:34]} Qe5 {[%emt 0:00:30]} 29. Bd4 {[%emt 0:04:53]} Qe6 {[%emt 0:02:30]} 30. Bxg7 {[%emt 0:01:20]} Kxg7 {[%emt 0:00:30]} 31. Qc3+ {[%emt 0:00:00]} Kg8 {[%emt 0:00:00]} 32. Nb4 {[%emt 0:00:01]} Qf5 {[%emt 0:00:00]} 33. Rc1 {[%emt 0:00:35]} Qg5 {[%emt 0:00:30]} 34. Rdc2 {[%emt 0:03:02]} Rfd8 {[%emt 0:01:30]} 35. c6 {[%emt 0:00:30]} Ba8 {[%emt 0:00:00]} 36. Qc5 {[%emt 0:00:00]} e5 {[%emt 0:02:00]} 37. Nd5 {[%emt 0:02:31]} Kg7 {[%emt 0:00:30]} 38. Qe3 {[%emt 0:00:38]} Qh5 {[%emt 0:01:30]} 39. g4 {[%emt 0:00:33]} Qh3 {[%emt 0:01:30]} 40. Qxe5+ {[%emt 0:00:30]} Kg8 {[%emt 0:00:30]} 41. Ne7+ {[%emt 0:00:30]} Kf8 {[%emt 0:00:30]} 42. Nxc8 {[%emt 0:00:30]} Rxc8 {[%emt 0:00:00]} 43. Qh8+ {[%emt 0:00:13]} Ke7 {[%emt 0:00:00]} 44. Re1+ {[%emt 0:00:28]} Kd6 {[%emt 0:00:00]} 45. Qe5# {[%emt 0:00:00]} 1-0

[Event "5th Baskent University Open 2022"]
[Site "Ankara"]
[Date "2022.07.04"]
[Round "4.21"]
[White "Turkmen, Ataberk"]
[Black "Nazli, Sertan"]
[Result "1-0"]
[ECO "A03"]
[WhiteElo "1935"]
[BlackElo "1741"]
[Annotator "RC"]
[PlyCount "91"]
[EventDate "2022.07.02"]
[EventType "swiss"]
[EventCountry "TUR"]
[SourceTitle "playchess.com"]
[Source "ChessBase"]
[SourceQuality "1"]
[TimeControl "5400+30"]

1. f4 {[%emt 0:01:00]} d5 {[%emt 0:04:00]} 2. Nf3 {[%emt 0:00:30]} Nf6 {[%emt 0:01:30]} 3. e3 {[%emt 0:00:30]} Bg4 {[%emt 0:01:30]} 4. b3 {[%emt 0:01:30]} g6 {[%emt 0:01:30]} 5. Bb2 {[%emt 0:00:30]} Bg7 {[%emt 0:00:30]} 6. d3 {[%emt 0:05:30]} O-O {[%emt 0:00:30]} 7. Nbd2 {[%emt 0:00:00]} c5 {[%emt 0:07:30]} 8. Be2 {[%emt 0:01:00]} Nc6 {[%emt 0:02:30]} 9. Ne5 {[%emt 0:02:30]} Bxe2 {[%emt 0:06:30]} 10. Qxe2 {[%emt 0:00:30]} Nd7 {[%emt 0:00:30]} 11. Nxc6 {[%emt 0:01:30]} bxc6 {[%emt 0:00:00]} 12. Bxg7 {[%emt 0:00:30]} Kxg7 {[%emt 0:00:00]} 13. O-O {[%emt 0:00:30]} e5 {[%emt 0:14:30]} 14. f5 {[%emt 0:05:30]} Qg5 {[%emt 0:02:30]} 15. e4 {[%emt 0:02:30]} Rab8 {[%emt 0:12:30]} 16. Rf3 {[%emt 0:09:30]} c4 {[%emt 0:05:30]} 17. dxc4 {[%emt 0:07:30]} Qe7 {[%emt 0:02:30]} 18. Raf1 {[%emt 0:04:30]} f6 {[%emt 0:04:30]} 19. h4 {[%emt 0:17:30]} Nc5 {[%emt 0:03:30]} 20. Rg3 {[%emt 0:17:30]} Rbd8 {[%emt 0:00:30]} 21. fxg6 {[%emt 0:02:53]} Nxe4 {[%emt 0:05:30]} 22. Nxe4 {[%emt 0:00:30]} dxe4 {[%emt 0:00:00]} 23. gxh7+ {[%emt 0:00:21]} Kh8 {[%emt 0:01:00]} 24. Qxe4 {[%emt 0:00:44]} Qc5+ {[%emt 0:01:30]} 25. Qe3 {[%emt 0:01:03]} Qxe3+ {[%emt 0:01:30]} 26. Rxe3 {[%emt 0:00:01]} Kxh7 {[%emt 0:05:19]} 27. Rd3 {[%emt 0:09:42]} Kg6 {[%emt 0:00:21]} 28. Rfd1 {[%emt 0:00:31]} Rxd3 {[%emt 0:01:30]} 29. Rxd3 {[%emt 0:00:01]} Rh8 {[%emt 0:04:44]} 30. g3 {[%emt 0:01:32]} Kf5 {[%emt 0:01:10]} 31. Kf2 {[%emt 0:01:08]} Ke4 {[%emt 0:01:56]} 32. Rf3 {[%emt 0:00:56]} Rd8 {[%emt 0:05:46]} 33. Rxf6 {[%emt 0:02:39]} Rd2+ {[%emt 0:00:30]} 34. Kg1 {[%emt 0:00:00]} Ke3 {[%emt 0:01:29]} 35. h5 {[%emt 0:00:17]} e4 {[%emt 0:00:44]} 36. h6 {[%emt 0:00:50]} Rd7 {[%emt 0:01:36]} 37. g4 {[%emt 0:00:27]} Kd2 {[%emt 0:01:15]} 38. g5 {[%emt 0:01:07]} e3 {[%emt 0:00:55]} 39. Re6 {[%emt 0:00:29]} e2 {[%emt 0:00:04]} 40. Kf2 {[%emt 0:01:06]} Rf7+ {[%emt 0:01:02]} 41. Kg3 {[%emt 0:00:02]} Rf1 {[%emt 0:00:07]} 42. h7 {[%emt 0:00:56]} Rh1 {[%emt 0:00:30]} 43. g6 {[%emt 0:00:00]} Rg1+ {[%emt 0:00:00]} 44. Kf2 {[%emt 0:00:26]} Rf1+ {[%emt 0:00:39]} 45. Kg2 {[%emt 0:00:02]} Rf6 {[%emt 0:01:02]} 46. Rxe2+ {[%emt 0:00:08]} 1-0

[Event "5th Baskent University Open 2022"]
[Site "Ankara"]
[Date "2022.07.04"]
[Round "4.22"]
[White "Engin, Onur Cinar"]
[Black "Buke, Furkan"]
[Result "1/2-1/2"]
[ECO "B22"]
[WhiteElo "1796"]
[BlackElo "1979"]
[Annotator "RC"]
[PlyCount "72"]
[EventDate "2022.07.02"]
[EventType "swiss"]
[EventCountry "TUR"]
[SourceTitle "playchess.com"]
[Source "ChessBase"]
[SourceQuality "1"]
[TimeControl "5400+30"]

1. e4 {[%emt 0:01:00]} c5 {[%emt 0:01:00]} 2. c3 {[%emt 0:00:00]} d5 {[%emt 0:00:30]} 3. exd5 {[%emt 0:00:00]} Qxd5 {[%emt 0:00:30]} 4. d4 {[%emt 0:00:00]} Nf6 {[%emt 0:00:30]} 5. Nf3 {[%emt 0:00:00]} e6 {[%emt 0:00:00]} 6. Be2 {[%emt 0:05:30]} Be7 {[%emt 0:01:00]} 7. Be3 {[%emt 0:00:30]} cxd4 {[%emt 0:01:30]} 8. cxd4 {[%emt 0:00:30]} Nc6 {[%emt 0:01:30]} 9. Nc3 {[%emt 0:00:00]} Qd6 {[%emt 0:00:30]} 10. O-O {[%emt 0:02:00]} O-O {[%emt 0:00:30]} 11. Rc1 {[%emt 0:02:30]} b6 {[%emt 0:03:30]} 12. Nb5 {[%emt 0:16:30]} Qd7 {[%emt 0:01:30]} 13. Ne5 {[%emt 0:14:30]} Nxe5 {[%emt 0:00:30]} 14. Rc7 {[%emt 0:02:30]} Qd8 {[%emt 0:26:30]} 15. dxe5 {[%emt 0:00:30]} Nd5 {[%emt 0:00:00]} 16. Rxa7 {[%emt 0:14:30]} Rxa7 {[%emt 0:00:00]} 17. Nxa7 {[%emt 0:00:00]} Nxe3 {[%emt 0:00:30]} 18. Qxd8 {[%emt 0:02:00]} Rxd8 {[%emt 0:00:30]} 19. Rc1 {[%emt 0:08:30]} Bc5 {[%emt 0:09:30]} 20. b4 {[%emt 0:06:30]} Bxb4 {[%emt 0:04:30]} 21. Rxc8 {[%emt 0:00:30]} Rxc8 {[%emt 0:00:30]} 22. Nxc8 {[%emt 0:00:00]} Nd5 {[%emt 0:01:30]} 23. Bc4 {[%emt 0:00:00]} Bc5 {[%emt 0:01:30]} 24. Kf1 {[%emt 0:01:30]} Kf8 {[%emt 0:01:30]} 25. Bxd5 {[%emt 0:02:30]} exd5 {[%emt 0:00:30]} 26. Na7 {[%emt 0:00:30]} Ke7 {[%emt 0:00:30]} 27. Ke2 {[%emt 0:02:08]} g5 {[%emt 0:03:30]} 28. Nc6+ {[%emt 0:06:27]} Kd7 {[%emt 0:01:30]} 29. Nb8+ {[%emt 0:00:26]} Ke6 {[%emt 0:01:30]} 30. Nc6 {[%emt 0:00:36]} h5 {[%emt 0:07:30]} 31. f3 {[%emt 0:03:37]} Bg1 {[%emt 0:01:30]} 32. h4 {[%emt 0:00:09]} gxh4 {[%emt 0:00:30]} 33. f4 {[%emt 0:01:14]} Kf5 {[%emt 0:08:30]} 34. Kf3 {[%emt 0:00:08]} d4 {[%emt 0:01:30]} 35. Nb4 {[%emt 0:01:51]} Be3 {[%emt 0:01:43]} 36. Nd5 {[%emt 0:01:13]} Bd2 {[%emt 0:04:33]} 1/2-1/2

[Event "5th Baskent University Open 2022"]
[Site "Ankara"]
[Date "2022.07.04"]
[Round "4.23"]
[White "Turk, Talha Gunes"]
[Black "Metin, Enis"]
[Result "0-1"]
[ECO "B22"]
[WhiteElo "1597"]
[BlackElo "1750"]
[Annotator "NA RC"]
[PlyCount "124"]
[EventDate "2022.07.02"]
[EventType "swiss"]
[EventCountry "TUR"]
[SourceTitle "playchess.com"]
[Source "ChessBase"]
[SourceQuality "1"]
[TimeControl "5400+30"]

1. e4 {[%emt 0:01:00]} c5 {[%emt 0:01:00]} 2. Nf3 {[%emt 0:00:30]} e6 {[%emt 0:00:30]} 3. c3 {[%emt 0:00:00]} d5 {[%emt 0:00:30]} 4. exd5 {[%emt 0:00:00]} exd5 {[%emt 0:00:30]} 5. d4 {[%emt 0:00:30]} Nf6 {[%emt 0:00:00]} 6. Bd3 {[%emt 0:01:30]} Be7 {[%emt 0:03:00]} 7. h3 {[%emt 0:01:30]} O-O {[%emt 0:01:30]} 8. O-O {[%emt 0:00:00]} Nc6 {[%emt 0:02:30]} 9. dxc5 {[%emt 0:15:00]} Ne4 {[%emt 0:08:30]} 10. Be3 {[%emt 0:07:30]} Nxc5 {[%emt 0:02:30]} 11. Bxc5 {[%emt 0:04:30]} Bxc5 {[%emt 0:00:30]} 12. Nbd2 {[%emt 0:00:30]} Qf6 {[%emt 0:00:30]} 13. Qc2 {[%emt 0:11:30]} g6 {[%emt 0:01:30]} 14. Rad1 {[%emt 0:01:30]} Bb6 {[%emt 0:00:30]} 15. Nb3 {[%emt 0:00:30]} Bxh3 {[%emt 0:00:00]} 16. Be2 {[%emt 0:05:30]} Bf5 {[%emt 0:01:00]} 17. Qd2 {[%emt 0:01:30]} Rfe8 {[%emt 0:00:00]} 18. Rfe1 {[%emt 0:07:30]} Be4 {[%emt 0:03:00]} 19. Nbd4 {[%emt 0:06:30]} Bc7 {[%emt 0:00:30]} 20. Qh6 {[%emt 0:00:30]} Bf4 {[%emt 0:00:30]} 21. Qh3 {[%emt 0:00:30]} h5 {[%emt 0:01:30]} 22. Bd3 {[%emt 0:06:30]} Rad8 {[%emt 0:01:30]} 23. Nxc6 {[%emt 0:05:30]} bxc6 {[%emt 0:00:30]} 24. Bxe4 {[%emt 0:00:30]} dxe4 {[%emt 0:00:30]} 25. Rxd8 {[%emt 0:00:30]} Qxd8 {[%emt 0:00:30]} 26. Nd4 {[%emt 0:00:30]} c5 {[%emt 0:01:30]} 27. Nb3 {[%emt 0:00:30]} Qd5 {[%emt 0:00:30]} 28. g3 {[%emt 0:09:05]} Bg5 {[%emt 0:06:30]} 29. Qf1 {[%emt 0:01:37]} e3 {[%emt 0:01:30]} 30. f4 {[%emt 0:00:41]} Bd8 {[%emt 0:01:30]} 31. Qb5 {[%emt 0:03:27]} Re6 {[%emt 0:00:30]} 32. Qe2 {[%emt 0:00:15]} Bb6 {[%emt 0:00:30]} 33. c4 {[%emt 0:01:31]} Qe4 {[%emt 0:00:30]} 34. Nc1 {[%emt 0:00:30]} h4 {[%emt 0:00:30]} 35. Nd3 {[%emt 0:05:36]} hxg3 {[%emt 0:00:30]} 36. Ne5 {[%emt 0:02:46]} Qxf4 {[%emt 0:00:30]} 37. Qxe3 {[%emt 0:00:26]} Qh4 {[%emt 0:00:30]} 38. Qf3 {[%emt 0:01:05]} Rxe5 {[%emt 0:01:30]} 39. Rxe5 {[%emt 0:00:44]} Qh2+ {[%emt 0:00:30]} 40. Kf1 {[%emt 0:00:00]} g2+ {[%emt 0:00:30]} 41. Qxg2 {[%emt 0:00:17]} Qxe5 {[%emt 0:00:00]} 42. Qd2 {[%emt 0:01:27]} Kg7 {[%emt 0:00:00]} 43. b3 {[%emt 0:00:20]} Bc7 {[%emt 0:00:00]} 44. Kg2 {[%emt 0:00:12]} Qg3+ {[%emt 0:00:00]} 45. Kf1 {[%emt 0:00:30]} Qf4+ {[%emt 0:00:30]} 46. Ke2 {[%emt 0:00:30]} Qxd2+ {[%emt 0:00:00]} 47. Kxd2 {[%emt 0:00:00]} f5 {[%emt 0:00:00]} 48. a3 {[%emt 0:00:15]} a5 {[%emt 0:00:00]} 49. Ke3 {[%emt 0:00:25]} g5 {[%emt 0:00:00]} 50. Kf2 {[%emt 0:00:30]} g4 {[%emt 0:00:30]} 51. Kg2 {[%emt 0:00:00]} f4 {[%emt 0:00:30]} 52. Kg1 {[%emt 0:00:00]} f3 {[%emt 0:00:30]} 53. Kf2 {[%emt 0:00:19]} Bf4 {[%emt 0:00:00]} 54. Kg1 {[%emt 0:00:00]} g3 {[%emt 0:00:00]} 55. Kf1 {[%emt 0:00:14]} Kg6 {[%emt 0:00:00]} 56. Kg1 {[%emt 0:00:00]} Kf5 {[%emt 0:00:00]} 57. Kh1 {[%emt 0:00:22]} Ke4 {[%emt 0:00:00]} 58. Kg1 {[%emt 0:00:28]} Kd3 {[%emt 0:00:00]} 59. Kf1 {[%emt 0:00:30]} Kc3 {[%emt 0:00:00]} 60. b4 {[%emt 0:00:00]} Kxc4 {[%emt 0:00:00]} 61. bxa5 {[%emt 0:00:07]} Kb5 {[%emt 0:00:30]} 62. a4+ {[%emt 0:00:00]} Kxa5 {[%emt 0:00:00]} 0-1